[Event "MCR rapid mládeže 2023 U16"]
[Site "Harachov, Czech Republic"]
[Date "2023.09.10"]
[Round "7.16"]
[White "Honcharov, Makar"]
[Black "Boff, Ondrej"]
[Result "0-1"]
[TimeControl "20min+5s/move"]
[WhiteElo "1593"]
[BlackElo "1486"]

1. e4 {[%clk 00:20:09]} c5 {[%clk 00:20:07]} {[%emt 00:00:03]} 2. Nf3 {[%clk
00:20:13]} {[%emt 00:00:02]} Nc6 {[%clk 00:20:08]} {[%emt 00:00:03]} 3. d4
{[%clk 00:20:17]} {[%emt 00:00:02]} cxd4 {[%clk 00:20:10]} {[%emt 00:00:02]} 4.
Nxd4 {[%clk 00:20:20]} {[%emt 00:00:02]} e5 {[%clk 00:20:13]} {[%emt 00:00:02]}
5. Nb5 {[%clk 00:20:24]} {[%emt 00:00:01]} d6 {[%clk 00:20:16]} {[%emt
00:00:02]} 6. N1c3 {[%clk 00:20:28]} {[%emt 00:00:01]} a6 {[%clk 00:20:20]}
{[%emt 00:00:02]} 7. Na3 {[%clk 00:20:32]} {[%emt 00:00:01]} Be7 {[%clk
00:20:23]} {[%emt 00:00:02]} 8. Nd5 {[%clk 00:20:36]} {[%emt 00:00:01]} Nf6
{[%clk 00:18:36]} {[%emt 00:01:52]} 9. Nxf6+ {[%clk 00:20:37]} {[%emt
00:00:03]} Bxf6 {[%clk 00:18:38]} {[%emt 00:00:03]} 10. Nc4 {[%clk 00:20:41]}
{[%emt 00:00:02]} Be7 {[%clk 00:13:42]} {[%emt 00:05:00]} 11. Be3 {[%clk
00:20:36]} {[%emt 00:00:03]} b5 {[%clk 00:12:04]} {[%emt 00:01:50]} 12. Nb6
{[%clk 00:20:38]} {[%emt 00:00:03]} Rb8 {[%clk 00:11:39]} {[%emt 00:00:30]} 13.
Nxc8 {[%clk 00:20:40]} {[%emt 00:00:04]} Qxc8 {[%clk 00:11:02]} {[%emt
00:00:42]} 14. Be2 {[%clk 00:20:22]} {[%emt 00:00:23]} O-O {[%clk 00:10:51]}
{[%emt 00:00:15]} 15. O-O {[%clk 00:20:16]} {[%emt 00:00:03]} Rd8 {[%clk
00:10:21]} {[%emt 00:00:43]} 16. c3 {[%clk 00:20:06]} {[%emt 00:00:14]} Na5
{[%clk 00:09:33]} {[%emt 00:00:54]} 17. g3 {[%clk 00:12:58]} {[%emt 00:07:13]}
Nc4 {[%clk 00:08:35]} {[%emt 00:01:03]} 18. Bc1 {[%clk 00:12:59]} {[%emt
00:00:03]} Qc6 {[%clk 00:08:18]} {[%emt 00:00:22]} 19. Bf3 {[%clk 00:11:36]}
{[%emt 00:01:24]} Rbc8 {[%clk 00:07:47]} {[%emt 00:00:41]} 20. Bg2 {[%clk
00:11:10]} {[%emt 00:00:31]} Qc5 {[%clk 00:06:32]} {[%emt 00:01:19]} 21. b3
{[%clk 00:10:11]} {[%emt 00:01:05]} Nb6 {[%clk 00:06:02]} {[%emt 00:00:34]} 22.
Be3 {[%clk 00:10:12]} {[%emt 00:00:04]} Qc6 {[%clk 00:05:59]} {[%emt 00:00:07]}
23. f4 {[%clk 00:10:10]} {[%emt 00:00:09]} Nd7 {[%clk 00:05:20]} {[%emt
00:00:41]} 24. Rc1 {[%clk 00:09:47]} {[%emt 00:00:31]} Nc5 {[%clk 00:04:51]}
{[%emt 00:00:34]} 25. c4 {[%emt 00:00:49]} b4 {[%clk 00:04:36]} {[%emt
00:00:17]} 26. Qg4 {[%clk 00:08:37]} {[%emt 00:00:34]} Qd7 {[%clk 00:03:39]}
{[%emt 00:01:01]} 27. f5 {[%clk 00:08:06]} {[%emt 00:00:38]} Bf6 {[%clk
00:03:27]} {[%emt 00:00:15]} 28. Rcd1 {[%clk 00:07:59]} {[%emt 00:00:13]} Qe7
{[%clk 00:03:18]} {[%emt 00:00:14]} 29. h4 {[%clk 00:07:46]} {[%emt 00:00:18]}
a5 {[%clk 00:02:37]} {[%emt 00:00:47]} 30. h5 {[%clk 00:07:25]} {[%emt
00:00:26]} Kh8 {[%clk 00:02:08]} {[%emt 00:00:33]} 31. h6 {[%clk 00:06:35]}
{[%emt 00:00:55]} Rg8 {[%clk 00:01:39]} {[%emt 00:00:32]} 32. hxg7+ {[%clk
00:02:54]} {[%emt 00:03:47]} Rxg7 {[%clk 00:01:24]} {[%emt 00:00:20]} 33. Qh5
{[%clk 00:02:43]} {[%emt 00:00:17]} Rxg3 {[%clk 00:01:04]} {[%emt 00:00:24]} 34.
Bxc5 {[%clk 00:02:01]} {[%emt 00:00:48]} dxc5 {[%clk 00:01:01]} {[%emt
00:00:08]} 35. Kf2 {[%clk 00:01:53]} {[%emt 00:00:13]} Rcg8 {[%clk 00:00:56]}
{[%emt 00:00:10]} 36. Bf3 {[%clk 00:01:33]} {[%emt 00:00:25]} R3g5 {[%clk
00:00:50]} {[%emt 00:00:10]} 37. Qh3 {[%clk 00:01:28]} {[%emt 00:00:09]} R5g7
{[%clk 00:00:44]} {[%emt 00:00:11]} 38. Rh1 {[%clk 00:01:24]} {[%emt 00:00:11]}
Bg5 {[%clk 00:00:39]} {[%emt 00:00:09]} 39. Rd5 {[%clk 00:01:16]} {[%emt
00:00:14]} Bf4 {[%clk 00:00:35]} {[%emt 00:00:08]} 40. Qh5 {[%clk 00:00:44]}
{[%emt 00:00:37]} h6 {[%clk 00:00:27]} {[%emt 00:00:13]} 41. Rd3 {[%clk
00:00:20]} {[%emt 00:00:29]} Bg3+ {[%clk 00:00:29]} {[%emt 00:00:04]} 42. Ke2
{[%clk 00:00:24]} {[%emt 00:00:01]} Bf4 {[%clk 00:00:32]} 43. Rd5 {[%clk
00:00:27]} {[%emt 00:00:02]} Rg3 {[%clk 00:00:27]} {[%emt 00:00:09]} 44. Kf2
{[%clk 00:00:22]} {[%emt 00:00:11]} f6 {[%clk 00:00:23]} {[%emt 00:00:09]} 45.
Rd3 {[%clk 00:00:15]} {[%emt 00:00:12]} Qg7 {[%clk 00:00:24]} {[%emt 00:00:04]}
46. Rh2 {[%clk 00:00:09]} {[%emt 00:00:12]} Rg1 {[%clk 00:00:21]} {[%emt
00:00:07]} 47. Rh1 {[%clk 00:00:08]} {[%emt 00:00:07]} Qg3+ {[%clk 00:00:23]}
{[%emt 00:00:02]} 48. Ke2 {[%clk 00:00:12]} {[%emt 00:00:02]} Qe1# {[%clk
00:00:25]} {[%emt 00:00:02]} 0-1

[Event "MCR rapid mládeže 2023 U16"]
[Site "Harachov, Czech Republic"]
[Date "2023.09.10"]
[Round "7.17"]
[White "Rudlof, Adam"]
[Black "Sochor, Antonin"]
[Result "1/2-1/2"]
[TimeControl "20min+5s/move"]
[WhiteElo "1436"]
[BlackElo "1480"]

1. e4 {[%clk 00:20:07]} {[%emt 00:00:02]} d6 {[%clk 00:19:51]} {[%emt
00:00:20]} 2. d4 {[%clk 00:20:06]} {[%emt 00:00:05]} Nf6 {[%clk 00:19:46]}
{[%emt 00:00:10]} 3. Nc3 {[%clk 00:20:09]} {[%emt 00:00:02]} Nbd7 {[%clk
00:19:46]} {[%emt 00:00:06]} 4. Be3 {[%clk 00:20:09]} {[%emt 00:00:04]} g6
{[%clk 00:19:50]} {[%emt 00:00:02]} 5. f3 {[%clk 00:20:11]} {[%emt 00:00:03]}
Bg7 {[%clk 00:19:53]} {[%emt 00:00:01]} 6. Qd2 {[%clk 00:20:14]} {[%emt
00:00:01]} O-O {[%clk 00:19:46]} {[%emt 00:00:12]} 7. O-O-O {[%clk 00:20:15]}
{[%emt 00:00:04]} e5 {[%clk 00:19:49]} {[%emt 00:00:02]} 8. d5 {[%clk
00:19:56]} {[%emt 00:00:24]} a6 {[%clk 00:19:48]} {[%emt 00:00:06]} 9. g4
{[%clk 00:19:57]} {[%emt 00:00:05]} b5 {[%clk 00:19:46]} {[%emt 00:00:06]} 10.
h4 {[%clk 00:19:56]} {[%emt 00:00:06]} h5 {[%clk 00:19:42]} {[%emt 00:00:10]}
11. Bg5 {[%clk 00:16:54]} {[%emt 00:03:06]} Qe8 {[%clk 00:19:32]} {[%emt
00:00:15]} 12. gxh5 {[%clk 00:15:26]} {[%emt 00:01:33]} Nxh5 {[%clk 00:19:28]}
{[%emt 00:00:08]} 13. Bh3 {[%clk 00:14:04]} {[%emt 00:01:25]} Nb6 {[%clk
00:18:37]} {[%emt 00:01:00]} 14. b3 {[%clk 00:09:59]} {[%emt 00:04:10]} Bxh3
{[%clk 00:17:45]} {[%emt 00:00:57]} 15. Nxh3 {[%clk 00:09:55]} {[%emt
00:00:08]} a5 {[%clk 00:16:56]} {[%emt 00:00:55]} 16. Bh6 {[%clk 00:08:56]}
{[%emt 00:01:04]} a4 {[%clk 00:15:48]} {[%emt 00:01:13]} 17. Bxg7 {[%clk
00:08:57]} {[%emt 00:00:04]} Kxg7 {[%clk 00:15:43]} {[%emt 00:00:09]} 18. Kb1
{[%clk 00:08:19]} {[%emt 00:00:43]} Nc4 {[%clk 00:12:08]} {[%emt 00:03:41]} 19.
bxc4 {[%clk 00:06:28]} {[%emt 00:01:56]} bxc4 {[%clk 00:11:46]} {[%emt
00:00:26]} 20. Ka1 {[%clk 00:06:04]} {[%emt 00:00:29]} Qb8 {[%clk 00:11:34]}
{[%emt 00:00:12]} 21. Rb1 {[%clk 00:05:45]} {[%emt 00:00:29]} Qa7 {[%clk
00:11:19]} {[%emt 00:00:16]} 22. Nb5 {[%clk 00:04:44]} {[%emt 00:01:10]} Qb6
{[%clk 00:09:40]} {[%emt 00:01:42]} 23. Nc3 {[%clk 00:03:17]} {[%emt 00:01:35]}
Qa5 {[%clk 00:08:44]} {[%emt 00:01:01]} 24. Rb5 {[%clk 00:02:47]} {[%emt
00:00:34]} Qa7 {[%clk 00:08:14]} {[%emt 00:00:34]} 25. Rhb1 {[%clk 00:02:11]}
{[%emt 00:00:42]} Qa6 {[%clk 00:08:03]} {[%emt 00:00:15]} 26. R1b4 {[%clk
00:00:53]} {[%emt 00:01:23]} a3 {[%clk 00:06:39]} {[%emt 00:01:30]} 27. Rxc4
{[%clk 00:00:56]} {[%emt 00:00:02]} Rfc8 {[%clk 00:04:37]} {[%emt 00:02:07]} 28.
Ra4 {[%clk 00:00:50]} {[%emt 00:00:11]} Qxb5 {[%clk 00:03:58]} {[%emt
00:00:43]} 29. Nxb5 {[%clk 00:00:54]} {[%emt 00:00:02]} Rxa4 {[%clk 00:03:44]}
{[%emt 00:00:19]} 30. Nc3 {[%clk 00:00:23]} {[%emt 00:00:36]} Raa8 {[%clk
00:03:39]} {[%emt 00:00:10]} 31. Ne2 {[%clk 00:00:16]} {[%emt 00:00:11]} Rcb8
{[%clk 00:03:11]} {[%emt 00:00:33]} 32. Nc1 {[%clk 00:00:18]} {[%emt 00:00:04]}
Nf6 {[%clk 00:03:04]} {[%emt 00:00:12]} 33. Nb3 {[%clk 00:00:22]} {[%emt
00:00:01]} Rh8 {[%clk 00:02:38]} {[%emt 00:00:30]} 34. Qf2 {[%clk 00:00:19]}
{[%emt 00:00:08]} Nd7 {[%clk 00:02:09]} {[%emt 00:00:34]} 35. f4 {[%emt
00:00:16]} exf4 {[%clk 00:02:05]} {[%emt 00:00:02]} 36. Qxf4 {[%clk 00:00:18]}
{[%emt 00:00:02]} Ne5 {[%clk 00:02:08]} {[%emt 00:00:03]} 37. Nf2 {[%clk
00:00:12]} {[%emt 00:00:11]} Rab8 {[%clk 00:01:31]} {[%emt 00:00:42]} 38. Ng4
{[%clk 00:00:12]} {[%emt 00:00:05]} Nxg4 {[%clk 00:01:31]} {[%emt 00:00:05]} 39.
Qxg4 {[%clk 00:00:16]} {[%emt 00:00:01]} Rbe8 {[%clk 00:01:31]} {[%emt
00:00:04]} 40. Nd4 {[%clk 00:00:14]} {[%emt 00:00:06]} Kf8 {[%clk 00:01:16]}
{[%emt 00:00:21]} 41. Nb5 {[%clk 00:00:08]} {[%emt 00:00:11]} Re5 {[%clk
00:00:36]} {[%emt 00:00:45]} 42. Nxa3 {[%clk 00:00:09]} {[%emt 00:00:05]} Reh5
{[%clk 00:00:39]} 43. Qc8+ {[%clk 00:00:12]} {[%emt 00:00:02]} Kg7 {[%clk
00:00:43]} {[%emt 00:00:02]} 44. Qxc7 {[%clk 00:00:16]} {[%emt 00:00:02]} Rxh4
{[%clk 00:00:46]} {[%emt 00:00:01]} 45. Qxd6 {[%clk 00:00:15]} {[%emt
00:00:06]} Rxe4 {[%clk 00:00:41]} {[%emt 00:00:09]} 46. Kb2 {[%clk 00:00:17]}
{[%emt 00:00:04]} Rh5 {[%clk 00:00:33]} {[%emt 00:00:13]} 47. Nb5 {[%clk
00:00:11]} {[%emt 00:00:11]} Re2 {[%clk 00:00:19]} {[%emt 00:00:19]} 48. Nc3
{[%clk 00:00:15]} {[%emt 00:00:01]} Rd2 {[%clk 00:00:11]} {[%emt 00:00:12]} 49.
Qf4 {[%clk 00:00:12]} {[%emt 00:00:08]} Rhh2 {[%clk 00:00:13]} {[%emt
00:00:04]} 50. Qe4 {[%clk 00:00:16]} {[%emt 00:00:01]} f5 {[%clk 00:00:07]}
{[%emt 00:00:10]} 51. d6 {[%clk 00:00:10]} {[%emt 00:00:12]} fxe4 {[%clk
00:00:07]} {[%emt 00:00:05]} 52. Nxe4 {[%clk 00:00:13]} {[%emt 00:00:02]} Rxc2+
{[%clk 00:00:10]} {[%emt 00:00:02]} 53. Kb3 {[%clk 00:00:17]} {[%emt 00:00:01]}
Rb2+ {[%clk 00:00:13]} {[%emt 00:00:02]} 54. Kc4 {[%clk 00:00:20]} {[%emt
00:00:02]} Rbd2 {[%clk 00:00:16]} {[%emt 00:00:02]} 55. Kc5 {[%clk 00:00:23]}
{[%emt 00:00:02]} Kh6 {[%clk 00:00:19]} {[%emt 00:00:01]} 56. Kc6 {[%clk
00:00:28]} {[%emt 00:00:01]} g5 57. d7 Rxd7 {[%clk 00:00:25]} {[%emt 00:00:01]}
58. Kxd7 {[%clk 00:00:37]} {[%emt 00:00:02]} Rxa2 {[%clk 00:00:27]} {[%emt
00:00:03]} 59. Ke6 {[%clk 00:00:41]} Kh5 {[%clk 00:00:30]} {[%emt 00:00:01]} 60.
Kf5 {[%clk 00:00:45]} g4 {[%clk 00:00:32]} {[%emt 00:00:03]} 61. Nf6 {[%clk
00:00:49]} {[%emt 00:00:02]} Kh4 {[%clk 00:00:36]} 62. Nxg4 {[%clk 00:00:52]}
{[%emt 00:00:01]} Ra5+ {[%clk 00:00:40]} {[%emt 00:00:01]} 63. Ne5 {[%clk
00:00:57]} {[%emt 00:00:01]} Kg3 {[%clk 00:00:41]} {[%emt 00:00:04]} 64. Ke4
{[%clk 00:01:00]} {[%emt 00:00:01]} Ra8 {[%clk 00:00:43]} {[%emt 00:00:04]} 65.
Nc6 {[%clk 00:01:02]} {[%emt 00:00:02]} Re8+ {[%clk 00:00:43]} {[%emt
00:00:06]} 66. Kd5 {[%clk 00:01:07]} {[%emt 00:00:01]} Kf4 {[%clk 00:00:46]}
{[%emt 00:00:01]} 67. Kd4 {[%clk 00:01:10]} {[%emt 00:00:01]} Rc8 {[%clk
00:00:49]} {[%emt 00:00:02]} 68. Ne7 {[%clk 00:01:14]} {[%emt 00:00:01]} Rd8+
{[%clk 00:00:53]} {[%emt 00:00:01]} 69. Nd5 {[%clk 00:01:19]} Kf5 {[%clk
00:00:56]} {[%emt 00:00:02]} 70. Kc4 {[%clk 00:01:23]} Ke5 {[%clk 00:00:59]}
{[%emt 00:00:03]} 71. Nb6 {[%clk 00:01:26]} {[%emt 00:00:02]} Rb8 {[%clk
00:01:02]} {[%emt 00:00:01]} 72. Nd7+ {[%clk 00:01:30]} {[%emt 00:00:02]} Kd6
{[%clk 00:01:06]} {[%emt 00:00:01]} 73. Nxb8 {[%clk 00:01:33]} {[%emt
00:00:02]} 1/2-1/2

[Event "MCR rapid mládeže 2023 U16"]
[Site "Harachov, Czech Republic"]
[Date "2023.09.10"]
[Round "7.18"]
[White "Tejnor, Martin"]
[Black "Bara, Jan"]
[Result "1-0"]
[TimeControl "20min+5s/move"]
[WhiteElo "1434"]
[BlackElo "1823"]

1. e4 {[%clk 00:20:09]} c5 {[%clk 00:20:03]} {[%emt 00:00:07]} 2. Nf3 {[%clk
00:20:11]} {[%emt 00:00:03]} d6 {[%clk 00:20:07]} {[%emt 00:00:01]} 3. d4
{[%clk 00:20:15]} {[%emt 00:00:01]} cxd4 {[%clk 00:20:12]} {[%emt 00:00:01]} 4.
Nxd4 {[%emt 00:00:01]} Nf6 5. Nc3 {[%clk 00:20:22]} {[%emt 00:00:01]} g6 {[%clk
00:20:20]} 6. Be2 {[%clk 00:20:23]} {[%emt 00:00:03]} Bg7 {[%clk 00:20:22]}
{[%emt 00:00:04]} 7. Be3 {[%clk 00:20:17]} {[%emt 00:00:10]} O-O {[%clk
00:20:25]} {[%emt 00:00:03]} 8. O-O {[%clk 00:20:20]} {[%emt 00:00:03]} Nc6
{[%clk 00:20:28]} {[%emt 00:00:01]} 9. f3 {[%clk 00:19:29]} {[%emt 00:00:56]}
d5 {[%clk 00:19:29]} {[%emt 00:01:04]} 10. Nxd5 {[%clk 00:15:34]} {[%emt
00:04:00]} Nxd5 {[%clk 00:19:31]} {[%emt 00:00:03]} 11. exd5 {[%clk 00:15:37]}
{[%emt 00:00:03]} Qxd5 {[%clk 00:19:30]} {[%emt 00:00:05]} 12. Nxc6 {[%clk
00:15:20]} {[%emt 00:00:22]} Qxc6 {[%clk 00:19:13]} {[%emt 00:00:22]} 13. c3
{[%clk 00:14:00]} {[%emt 00:01:25]} Bf5 {[%clk 00:18:34]} {[%emt 00:00:44]} 14.
Qb3 {[%clk 00:13:36]} {[%emt 00:00:29]} a6 {[%clk 00:17:00]} {[%emt 00:01:39]}
15. Rad1 {[%clk 00:12:46]} {[%emt 00:00:54]} Be6 {[%clk 00:15:52]} {[%emt
00:01:14]} 16. Qa3 {[%clk 00:12:13]} {[%emt 00:00:38]} Bf5 {[%clk 00:09:26]}
{[%emt 00:06:31]} 17. Bd3 {[%clk 00:08:55]} {[%emt 00:03:23]} Bxd3 {[%clk
00:08:45]} {[%emt 00:00:46]} 18. Rxd3 {[%clk 00:08:40]} {[%emt 00:00:19]} Rad8
{[%clk 00:08:25]} {[%emt 00:00:25]} 19. Rfd1 {[%clk 00:08:13]} {[%emt
00:00:32]} Rxd3 {[%clk 00:08:25]} {[%emt 00:00:07]} 20. Rxd3 {[%clk 00:08:15]}
{[%emt 00:00:02]} Qc4 {[%clk 00:07:28]} {[%emt 00:01:02]} 21. Rd2 {[%clk
00:07:50]} {[%emt 00:00:30]} Qe6 {[%clk 00:07:12]} {[%emt 00:00:20]} 22. Kf2
{[%clk 00:07:09]} {[%emt 00:00:46]} Be5 {[%clk 00:03:43]} {[%emt 00:03:34]} 23.
h3 {[%clk 00:06:09]} {[%emt 00:01:05]} Qf6 {[%clk 00:02:31]} {[%emt 00:01:18]}
24. Qb4 {[%clk 00:05:40]} {[%emt 00:00:34]} h5 {[%clk 00:01:17]} {[%emt
00:01:19]} 25. Qe4 {[%clk 00:04:05]} {[%emt 00:01:39]} Bd6 {[%clk 00:00:31]}
{[%emt 00:00:52]} 26. h4 {[%clk 00:02:54]} {[%emt 00:01:16]} b5 {[%clk
00:00:17]} {[%emt 00:00:19]} 27. Bg5 {[%clk 00:02:50]} {[%emt 00:00:08]} Qf5
{[%clk 00:00:12]} {[%emt 00:00:11]} 28. Qxf5 {[%clk 00:02:24]} {[%emt
00:00:31]} gxf5 {[%clk 00:00:16]} 29. Rd5 {[%clk 00:02:11]} {[%emt 00:00:18]}
f4 {[%clk 00:00:13]} {[%emt 00:00:08]} 30. b4 {[%clk 00:01:10]} {[%emt
00:01:05]} Rc8 {[%clk 00:00:11]} {[%emt 00:00:08]} 31. Rd4 {[%clk 00:00:34]}
{[%emt 00:00:41]} Rxc3 {[%clk 00:00:13]} {[%emt 00:00:03]} 32. Bxf4 {[%clk
00:00:38]} {[%emt 00:00:01]} Rc4 {[%emt 00:00:09]} 33. Rxc4 {[%clk 00:00:30]}
{[%emt 00:00:12]} bxc4 {[%clk 00:00:14]} 34. Bxd6 {[%clk 00:00:28]} {[%emt
00:00:08]} exd6 {[%clk 00:00:19]} {[%emt 00:00:01]} 35. Ke3 {[%clk 00:00:31]}
{[%emt 00:00:01]} Kf8 {[%clk 00:00:21]} {[%emt 00:00:01]} 36. Kd4 {[%clk
00:00:35]} {[%emt 00:00:02]} d5 {[%clk 00:00:26]} {[%emt 00:00:01]} 37. a4
{[%clk 00:00:38]} {[%emt 00:00:03]} Ke7 {[%clk 00:00:30]} {[%emt 00:00:01]} 38.
g4 {[%clk 00:00:36]} {[%emt 00:00:06]} hxg4 {[%clk 00:00:11]} {[%emt 00:00:24]}
39. fxg4 {[%clk 00:00:39]} {[%emt 00:00:01]} Kd6 {[%clk 00:00:13]} {[%emt
00:00:03]} 40. h5 {[%clk 00:00:43]} {[%emt 00:00:01]} a5 {[%clk 00:00:18]} 41.
b5 {[%clk 00:00:46]} {[%emt 00:00:03]} Ke6 {[%clk 00:00:20]} {[%emt 00:00:03]}
42. h6 {[%clk 00:00:50]} {[%emt 00:00:01]} Kf6 {[%clk 00:00:24]} {[%emt
00:00:01]} 43. b6 {[%clk 00:00:54]} {[%emt 00:00:01]} Kg5 {[%clk 00:00:28]}
{[%emt 00:00:01]} 44. b7 {[%clk 00:00:58]} 1-0

[Event "MCR rapid mládeže 2023 U16"]
[Site "Harachov, Czech Republic"]
[Date "2023.09.10"]
[Round "7.19"]
[White "Sotek, Matej"]
[Black "Zrust, Lukas"]
[Result "1/2-1/2"]
[TimeControl "20min+5s/move"]
[WhiteElo "1410"]
[BlackElo "1519"]

1. e4 {[%clk 00:20:09]} e6 {[%clk 00:20:06]} {[%emt 00:00:04]} 2. Nf3 {[%clk
00:20:12]} {[%emt 00:00:02]} d5 {[%clk 00:20:09]} {[%emt 00:00:02]} 3. exd5
{[%clk 00:20:16]} {[%emt 00:00:02]} exd5 {[%clk 00:20:13]} {[%emt 00:00:01]} 4.
d4 {[%clk 00:20:19]} {[%emt 00:00:01]} Bd6 {[%clk 00:20:11]} {[%emt 00:00:08]}
5. Bd3 {[%clk 00:20:21]} {[%emt 00:00:02]} Bg4 {[%clk 00:19:50]} {[%emt
00:00:26]} 6. O-O {[%clk 00:20:17]} {[%emt 00:00:09]} Ne7 {[%clk 00:19:36]}
{[%emt 00:00:19]} 7. h3 {[%clk 00:20:12]} {[%emt 00:00:11]} Bh5 {[%clk
00:19:39]} {[%emt 00:00:02]} 8. c3 {[%clk 00:19:52]} {[%emt 00:00:24]} O-O
{[%clk 00:19:27]} {[%emt 00:00:17]} 9. Be3 {[%clk 00:19:34]} {[%emt 00:00:23]}
Nd7 {[%clk 00:18:34]} {[%emt 00:00:58]} 10. Nbd2 {[%clk 00:19:32]} {[%emt
00:00:07]} Bg6 {[%clk 00:18:35]} {[%emt 00:00:04]} 11. Qc2 {[%clk 00:18:43]}
{[%emt 00:00:54]} Re8 {[%clk 00:18:01]} {[%emt 00:00:39]} 12. Bg5 {[%clk
00:17:51]} {[%emt 00:00:57]} f6 {[%clk 00:17:01]} {[%emt 00:01:05]} 13. Bxg6
{[%clk 00:17:12]} {[%emt 00:00:45]} Nxg6 {[%clk 00:17:02]} {[%emt 00:00:03]} 14.
Bh4 {[%clk 00:16:54]} {[%emt 00:00:23]} c6 {[%clk 00:15:43]} {[%emt 00:01:24]}
15. Rfe1 {[%clk 00:13:55]} {[%emt 00:03:04]} Qc7 {[%clk 00:15:38]} {[%emt
00:00:10]} 16. Re3 {[%clk 00:13:23]} {[%emt 00:00:38]} Bf4 {[%clk 00:14:07]}
{[%emt 00:01:35]} 17. Ree1 {[%clk 00:13:26]} {[%emt 00:00:02]} Nxh4 {[%clk
00:12:26]} {[%emt 00:01:46]} 18. Nxh4 {[%clk 00:13:06]} {[%emt 00:00:25]} Bg5
{[%clk 00:12:29]} {[%emt 00:00:02]} 19. Nhf3 {[%clk 00:12:59]} {[%emt
00:00:11]} Bf4 {[%clk 00:12:09]} {[%emt 00:00:25]} 20. Kf1 {[%clk 00:08:42]}
{[%emt 00:04:23]} Rad8 {[%clk 00:08:30]} {[%emt 00:03:44]} 21. Rxe8+ {[%clk
00:08:34]} {[%emt 00:00:13]} Rxe8 {[%clk 00:08:34]} {[%emt 00:00:02]} 22. Re1
{[%clk 00:08:38]} Rxe1+ {[%clk 00:08:31]} {[%emt 00:00:08]} 23. Kxe1 {[%clk
00:08:30]} {[%emt 00:00:13]} Qd6 {[%clk 00:08:01]} {[%emt 00:00:35]} 24. Qd3
{[%clk 00:08:23]} {[%emt 00:00:12]} Qe6+ {[%emt 00:00:29]} 25. Qe2 {[%clk
00:08:11]} {[%emt 00:00:16]} Bxd2+ {[%clk 00:07:22]} {[%emt 00:00:21]} 26. Kxd2
{[%clk 00:07:34]} {[%emt 00:00:42]} Qxe2+ 27. Kxe2 {[%clk 00:07:38]} Nb6 {[%clk
00:07:23]} {[%emt 00:00:01]} 28. Kd2 {[%clk 00:07:39]} {[%emt 00:00:03]} Nc4+
{[%clk 00:07:23]} {[%emt 00:00:05]} 29. Kc2 {[%clk 00:07:40]} {[%emt 00:00:04]}
Kf7 {[%clk 00:07:26]} {[%emt 00:00:02]} 30. Nd2 {[%clk 00:07:17]} {[%emt
00:00:28]} Nd6 {[%clk 00:06:46]} {[%emt 00:00:45]} 31. Kd3 {[%clk 00:06:00]}
{[%emt 00:01:22]} g5 {[%clk 00:06:05]} {[%emt 00:00:46]} 32. g3 {[%clk
00:02:46]} {[%emt 00:03:19]} Kg6 {[%clk 00:05:35]} {[%emt 00:00:36]} 33. f3
{[%clk 00:02:14]} {[%emt 00:00:37]} Nf5 {[%clk 00:05:13]} {[%emt 00:00:26]} 34.
g4 {[%clk 00:01:43]} {[%emt 00:00:36]} Nh4 {[%clk 00:04:38]} {[%emt 00:00:40]}
35. Ke2 {[%clk 00:01:09]} {[%emt 00:00:39]} Ng2 {[%clk 00:04:39]} {[%emt
00:00:04]} 36. Kf2 {[%clk 00:00:36]} {[%emt 00:00:39]} Nf4 {[%clk 00:04:42]}
{[%emt 00:00:01]} 37. Kg3 {[%clk 00:00:38]} {[%emt 00:00:04]} Ne2+ {[%clk
00:04:28]} {[%emt 00:00:19]} 38. Kf2 {[%clk 00:00:39]} {[%emt 00:00:04]} Nc1
{[%clk 00:04:24]} {[%emt 00:00:07]} 39. Nb3 {[%clk 00:00:36]} {[%emt 00:00:09]}
Nd3+ {[%clk 00:04:09]} {[%emt 00:00:20]} 40. Ke3 {[%clk 00:00:39]} {[%emt
00:00:02]} Nxb2 {[%clk 00:04:11]} {[%emt 00:00:03]} 41. Na5 {[%clk 00:00:44]}
{[%emt 00:00:01]} Nd1+ {[%clk 00:03:46]} {[%emt 00:00:29]} 42. Kd2 {[%clk
00:00:45]} {[%emt 00:00:04]} Nf2 {[%clk 00:03:43]} {[%emt 00:00:08]} 43. Nxb7
{[%clk 00:00:49]} {[%emt 00:00:01]} Nxh3 {[%clk 00:03:45]} {[%emt 00:00:03]} 44.
Nd8 {[%clk 00:00:52]} {[%emt 00:00:02]} a5 {[%clk 00:03:26]} {[%emt 00:00:24]}
45. Nxc6 {[%clk 00:00:56]} {[%emt 00:00:01]} a4 {[%clk 00:03:30]} {[%emt
00:00:01]} 46. Ne7+ {[%clk 00:00:59]} {[%emt 00:00:01]} Kf7 {[%clk 00:03:30]}
{[%emt 00:00:06]} 47. Nxd5 {[%clk 00:01:03]} {[%emt 00:00:01]} Ke6 {[%clk
00:03:14]} {[%emt 00:00:21]} 48. c4 {[%clk 00:01:07]} f5 {[%clk 00:02:32]}
{[%emt 00:00:47]} 49. gxf5+ {[%clk 00:00:54]} {[%emt 00:00:18]} Kxf5 {[%clk
00:02:34]} {[%emt 00:00:02]} 50. Ke2 {[%clk 00:00:52]} {[%emt 00:00:07]} h5
{[%clk 00:01:50]} {[%emt 00:00:49]} 51. Kf1 {[%clk 00:00:16]} {[%emt 00:00:42]}
g4 {[%clk 00:01:03]} {[%emt 00:00:52]} 52. fxg4+ {[%clk 00:00:15]} {[%emt
00:00:06]} hxg4 {[%clk 00:01:06]} {[%emt 00:00:01]} 53. Kg2 {[%clk 00:00:13]}
{[%emt 00:00:07]} Ke4 {[%clk 00:01:06]} {[%emt 00:00:06]} 54. Nb6 {[%clk
00:00:13]} {[%emt 00:00:05]} Kxd4 {[%clk 00:01:01]} {[%emt 00:00:10]} 55. Kg3
{[%clk 00:00:14]} {[%emt 00:00:04]} a3 {[%clk 00:00:53]} {[%emt 00:00:13]} 56.
Kxg4 {[%clk 00:00:16]} {[%emt 00:00:03]} Nf2 {[%clk 00:00:57]} {[%emt
00:00:01]} 57. Kf3 {[%clk 00:00:18]} {[%emt 00:00:03]} Nd3 {[%clk 00:00:59]}
{[%emt 00:00:02]} 58. Ke2 {[%clk 00:00:10]} {[%emt 00:00:14]} Nc1+ {[%clk
00:00:49]} {[%emt 00:00:15]} 59. Kd2 {[%clk 00:00:13]} {[%emt 00:00:02]} Nxa2
{[%clk 00:00:52]} 60. Kc2 {[%clk 00:00:09]} {[%emt 00:00:10]} Nb4+ {[%clk
00:00:56]} {[%emt 00:00:01]} 61. Kb3 {[%clk 00:00:10]} {[%emt 00:00:03]} a2
{[%clk 00:00:40]} {[%emt 00:00:21]} 62. Kb2 {[%clk 00:00:09]} {[%emt 00:00:05]}
Kc5 {[%clk 00:00:44]} {[%emt 00:00:02]} 63. Na4+ {[%emt 00:00:39]} 1/2-1/2